[Event "*** Titled Tuesday Blitz"]
[Site "Chess.com"]
[Date "2020.11.10"]
[Round "8"]
[White "PriSachu"]
[Black "ShcufNaiRolf"]
[Result "1-0"]
[WhiteElo "2510"]
[BlackElo "2332"]
[TimeControl "180+1"]
[EndTime "11:32:45 PST"]
[Termination "PriSachu won by checkmate"]

1. e4 {[%clk 0:02:56.6]} 1... e5 {[%clk 0:02:59.1]} 2. Nf3 {[%clk 0:02:56.2]}
2... Nc6 {[%clk 0:02:59.3]} 3. Bb5 {[%clk 0:02:55.9]} 3... a6 {[%clk 0:02:59.7]}
4. Ba4 {[%clk 0:02:56.2]} 4... Nf6 {[%clk 0:02:59.3]} 5. O-O {[%clk 0:02:56.5]}
5... Be7 {[%clk 0:02:57.5]} 6. Re1 {[%clk 0:02:56.1]} 6... b5 {[%clk 0:02:57.6]}
7. Bb3 {[%clk 0:02:56.4]} 7... d6 {[%clk 0:02:56.6]} 8. c3 {[%clk 0:02:56.9]}
8... O-O {[%clk 0:02:56.4]} 9. h3 {[%clk 0:02:57.3]} 9... Nb8 {[%clk 0:02:55.7]}
10. d4 {[%clk 0:02:57.6]} 10... Nbd7 {[%clk 0:02:55.6]} 11. Nbd2 {[%clk
0:02:58.2]} 11... Bb7 {[%clk 0:02:55.5]} 12. Bc2 {[%clk 0:02:57.7]} 12... Re8
{[%clk 0:02:52.9]} 13. Nf1 {[%clk 0:02:58.2]} 13... Bf8 {[%clk 0:02:52.5]} 14.
Ng3 {[%clk 0:02:58.7]} 14... g6 {[%clk 0:02:52.6]} 15. Bg5 {[%clk 0:02:57.9]}
15... h6 {[%clk 0:02:47.8]} 16. Be3 {[%clk 0:02:57.5]} 16... exd4 {[%clk
0:02:42.3]} 17. Bxd4 {[%clk 0:02:55.4]} 17... c5 {[%clk 0:02:32.4]} 18. Bxf6
{[%clk 0:02:50.9]} 18... Qxf6 {[%clk 0:02:22.8]} 19. Qd2 {[%clk 0:02:51.4]}
19... Ne5 {[%clk 0:02:16]} 20. Nxe5 {[%clk 0:02:50]} 20... dxe5 {[%clk
0:02:16.9]} 21. a4 {[%clk 0:02:40.8]} 21... b4 {[%clk 0:02:12.6]} 22. a5 {[%clk
0:02:24.7]} 22... Red8 {[%clk 0:02:03]} 23. Qe2 {[%clk 0:02:24.3]} 23... Bc6
{[%clk 0:01:37.6]} 24. Bd3 {[%clk 0:02:22.4]} 24... Be8 {[%clk 0:01:15.3]} 25.
Nf1 {[%clk 0:02:20.5]} 25... Qc6 {[%clk 0:00:37.5]} 26. Ne3 {[%clk 0:02:18.3]}
26... Qb7 {[%clk 0:00:37.9]} 27. Nd5 {[%clk 0:02:17.9]} 27... Bc6 {[%clk
0:00:33.5]} 28. Bc4 {[%clk 0:02:17.6]} 28... Rab8 {[%clk 0:00:27.7]} 29. Bxa6
{[%clk 0:02:16.7]} 29... Qa7 {[%clk 0:00:24.2]} 30. Bc4 {[%clk 0:02:16.8]} 30...
bxc3 {[%clk 0:00:22.7]} 31. bxc3 {[%clk 0:02:16.9]} 31... Bg7 {[%clk 0:00:20.4]}
32. a6 {[%clk 0:02:09]} 32... h5 {[%clk 0:00:19.9]} 33. Reb1 {[%clk 0:02:06.8]}
33... Bxd5 {[%clk 0:00:17.8]} 34. Bxd5 {[%clk 0:02:06.2]} 34... Rxb1+ {[%clk
0:00:18.3]} 35. Rxb1 {[%clk 0:02:07.1]} 35... Rb8 {[%clk 0:00:18.8]} 36. Rb7
{[%clk 0:01:58.1]} 36... Rxb7 {[%clk 0:00:18.7]} 37. axb7 {[%clk 0:01:58.6]}
37... Qb6 {[%clk 0:00:19.1]} 38. Qa2 {[%clk 0:01:56.3]} 38... Kh7 {[%clk
0:00:17.6]} 39. Bxf7 {[%clk 0:01:54]} 39... Bh6 {[%clk 0:00:16.6]} 40. Qe6
{[%clk 0:01:47.2]} 40... Qb1+ {[%clk 0:00:16.1]} 41. Kh2 {[%clk 0:01:47.7]}
41... Bf4+ {[%clk 0:00:16.2]} 42. g3 {[%clk 0:01:48.2]} 42... Bxg3+ {[%clk
0:00:16.7]} 43. Kxg3 {[%clk 0:01:41.6]} 43... Qg1+ {[%clk 0:00:12.5]} 44. Kf3
{[%clk 0:01:41.9]} 44... Qh1+ {[%clk 0:00:11.3]} 45. Ke2 {[%clk 0:01:34.2]}
45... Qxe4+ {[%clk 0:00:08.3]} 46. Kd2 {[%clk 0:01:34.7]} 46... Qf4+ {[%clk
0:00:06.1]} 47. Kd3 {[%clk 0:01:33.4]} 47... Qf3+ {[%clk 0:00:06]} 48. Kc4
{[%clk 0:01:31.6]} 48... Qxb7 {[%clk 0:00:01.2]} 49. Qxg6+ {[%clk 0:01:31.1]}
49... Kh8 {[%clk 0:00:01.8]} 50. Qh6# {[%clk 0:01:32]} 1-0

[Event "*** Titled Tuesday Blitz"]
[Site "Chess.com"]
[Date "2020.11.10"]
[Round "8"]
[White "FMOlexandrProhorov"]
[Black "Skat2704"]
[Result "1-0"]
[WhiteElo "2159"]
[BlackElo "2394"]
[TimeControl "180+1"]
[EndTime "11:32:46 PST"]
[Termination "FMOlexandrProhorov won by resignation"]

1. e4 {[%clk 0:02:52.4]} 1... c6 {[%clk 0:02:59.6]} 2. d4 {[%clk 0:02:51.9]}
2... d5 {[%clk 0:02:59.2]} 3. Nc3 {[%clk 0:02:48.6]} 3... dxe4 {[%clk
0:02:58.6]} 4. Nxe4 {[%clk 0:02:45]} 4... Nf6 {[%clk 0:02:58.6]} 5. Nxf6+ {[%clk
0:02:41.8]} 5... exf6 {[%clk 0:02:57.8]} 6. Ne2 {[%clk 0:02:41]} 6... Bd6 {[%clk
0:02:56.7]} 7. Ng3 {[%clk 0:02:39.6]} 7... Qc7 {[%clk 0:02:53.9]} 8. Be2 {[%clk
0:02:37.7]} 8... O-O {[%clk 0:02:52.4]} 9. Be3 {[%clk 0:02:37.2]} 9... Re8
{[%clk 0:02:49.4]} 10. Qd2 {[%clk 0:02:37.2]} 10... c5 {[%clk 0:02:42.4]} 11.
O-O-O {[%clk 0:02:35.3]} 11... cxd4 {[%clk 0:02:40.6]} 12. Qxd4 {[%clk
0:02:30.7]} 12... Be5 {[%clk 0:02:36.4]} 13. Qc4 {[%clk 0:02:26.6]} 13... Nc6
{[%clk 0:02:28.7]} 14. Bd3 {[%clk 0:02:15.2]} 14... Be6 {[%clk 0:02:04.4]} 15.
Qh4 {[%clk 0:02:14.3]} 15... g6 {[%clk 0:01:55.2]} 16. Ne4 {[%clk 0:02:00.8]}
16... Bxa2 {[%clk 0:01:08.3]} 17. Nxf6+ {[%clk 0:01:57.2]} 17... Bxf6 {[%clk
0:01:01.4]} 18. Qxf6 {[%clk 0:01:58.1]} 18... Re6 {[%clk 0:00:54.4]} 19. Qc3
{[%clk 0:01:55.5]} 19... Qe7 {[%clk 0:00:41.4]} 20. Bh6 {[%clk 0:01:50.3]} 20...
Qf6 {[%clk 0:00:34.6]} 21. Qxf6 {[%clk 0:01:41.4]} 21... Rxf6 {[%clk 0:00:34.6]}
22. b3 {[%clk 0:01:28.2]} 22... a5 {[%clk 0:00:25.5]} 23. Kb2 {[%clk 0:01:24.7]}
23... a4 {[%clk 0:00:25.6]} 24. Kxa2 {[%clk 0:01:20.3]} 24... axb3+ {[%clk
0:00:20.9]} 25. Kxb3 {[%clk 0:01:21.2]} 25... Nd4+ {[%clk 0:00:19.7]} 26. Kc3
{[%clk 0:01:17.1]} 26... Rd6 {[%clk 0:00:17.4]} 27. Bf4 {[%clk 0:01:12.6]} 27...
Rc8+ {[%clk 0:00:16.9]} 28. Kd2 {[%clk 0:01:10.4]} 28... Rdc6 {[%clk 0:00:12.9]}
29. Rc1 {[%clk 0:01:05]} 29... Ne6 {[%clk 0:00:11.8]} 30. Be3 {[%clk 0:01:04.3]}
30... Rd6 {[%clk 0:00:10.6]} 31. Ke2 {[%clk 0:01:02.9]} 31... Rcd8 {[%clk
0:00:10.3]} 32. g3 {[%clk 0:01:02.1]} 32... h5 {[%clk 0:00:09.7]} 33. h4 {[%clk
0:01:01.7]} 33... Nf8 {[%clk 0:00:08.7]} 34. Rhd1 {[%clk 0:01:01.3]} 34... Nd7
{[%clk 0:00:07.7]} 35. Be4 {[%clk 0:00:58.7]} 35... Re6 {[%clk 0:00:07.5]} 36.
Bxb7 {[%clk 0:00:57.2]} 1-0

[Event "*** Titled Tuesday Blitz"]
[Site "Chess.com"]
[Date "2020.11.10"]
[Round "8"]
[White "DarZay"]
[Black "rugbyclub"]
[Result "0-1"]
[WhiteElo "2049"]
[BlackElo "2200"]
[TimeControl "180+1"]
[EndTime "11:32:47 PST"]
[Termination "rugbyclub won by resignation"]

1. e4 {[%clk 0:02:50.2]} 1... e6 {[%clk 0:02:57.8]} 2. d4 {[%clk 0:02:48.1]}
2... d5 {[%clk 0:02:57.8]} 3. Nc3 {[%clk 0:02:48.1]} 3... Bb4 {[%clk 0:02:57.7]}
4. exd5 {[%clk 0:02:34.4]} 4... exd5 {[%clk 0:02:56.7]} 5. Bd2 {[%clk
0:02:34.4]} 5... Nc6 {[%clk 0:02:52.6]} 6. Nf3 {[%clk 0:02:33.8]} 6... Nge7
{[%clk 0:02:52.4]} 7. Bd3 {[%clk 0:02:32.1]} 7... O-O {[%clk 0:02:50.1]} 8. O-O
{[%clk 0:02:32.1]} 8... h6 {[%clk 0:02:45.2]} 9. a3 {[%clk 0:02:26.7]} 9... Bd6
{[%clk 0:02:44.4]} 10. Re1 {[%clk 0:02:24.5]} 10... Be6 {[%clk 0:02:43.7]} 11.
Be3 {[%clk 0:02:19.4]} 11... Bg4 {[%clk 0:02:39.9]} 12. h3 {[%clk 0:02:18.7]}
12... Bh5 {[%clk 0:02:39.9]} 13. Be2 {[%clk 0:02:14.3]} 13... Re8 {[%clk
0:02:35.1]} 14. Nh2 {[%clk 0:01:59.6]} 14... Bxe2 {[%clk 0:02:32.1]} 15. Qxe2
{[%clk 0:01:57.8]} 15... Nxd4 {[%clk 0:02:31]} 16. Bxd4 {[%clk 0:01:41.8]} 16...
Nf5 {[%clk 0:02:30.8]} 17. Qg4 {[%clk 0:01:33]} 17... Nxd4 {[%clk 0:02:18.8]}
18. Qxd4 {[%clk 0:01:30.2]} 18... c6 {[%clk 0:02:18.4]} 19. Nf3 {[%clk 0:01:25]}
19... Qc7 {[%clk 0:02:13.8]} 20. Rxe8+ {[%clk 0:01:15.4]} 20... Rxe8 {[%clk
0:02:12.9]} 21. Re1 {[%clk 0:01:15.8]} 21... Rxe1+ {[%clk 0:02:12.3]} 22. Nxe1
{[%clk 0:01:15.5]} 22... a5 {[%clk 0:02:13]} 23. Qe3 {[%clk 0:01:12]} 23... Be5
{[%clk 0:02:09.9]} 24. Nf3 {[%clk 0:01:10.6]} 24... Bf6 {[%clk 0:02:10.1]} 25.
Qe8+ {[%clk 0:01:08.4]} 25... Kh7 {[%clk 0:02:09.6]} 26. Qe2 {[%clk 0:01:04]}
26... b5 {[%clk 0:02:06.9]} 27. Qd3+ {[%clk 0:01:00.3]} 27... g6 {[%clk
0:02:04.1]} 28. b3 {[%clk 0:01:00.2]} 28... Qf4 {[%clk 0:01:56.3]} 29. Ne2
{[%clk 0:00:58.7]} 29... Qc7 {[%clk 0:01:52.9]} 30. Qe3 {[%clk 0:00:53.3]} 30...
Qd6 {[%clk 0:01:48.8]} 31. a4 {[%clk 0:00:49.5]} 31... bxa4 {[%clk 0:01:47.2]}
32. bxa4 {[%clk 0:00:48.5]} 32... Qb4 {[%clk 0:01:46.4]} 33. Qa7 {[%clk
0:00:45.6]} 33... Kg7 {[%clk 0:01:42.8]} 34. Ned4 {[%clk 0:00:42.2]} 34... Qxa4
{[%clk 0:01:36]} 35. Ne6+ {[%clk 0:00:37.2]} 35... Kg8 {[%clk 0:01:26.6]} 36.
Qb8+ {[%clk 0:00:31.8]} 36... Kh7 {[%clk 0:01:24.1]} 37. Qf8 {[%clk 0:00:29.7]}
37... Qa1+ {[%clk 0:01:15.6]} 38. Kh2 {[%clk 0:00:29.4]} 38... fxe6 {[%clk
0:01:16.2]} 39. Qf7+ {[%clk 0:00:28.2]} 39... Bg7 {[%clk 0:01:14.5]} 40. Qxe6
{[%clk 0:00:28.4]} 40... Qc3 {[%clk 0:01:09.9]} 41. Nh4 {[%clk 0:00:26.9]} 41...
Qe5+ {[%clk 0:01:06.3]} 42. Qxe5 {[%clk 0:00:26.7]} 42... Bxe5+ {[%clk
0:01:06.9]} 43. g3 {[%clk 0:00:26.3]} 43... a4 {[%clk 0:01:06.2]} 44. Nf3 {[%clk
0:00:26.6]} 44... Bf6 {[%clk 0:01:04.8]} 45. Nd2 {[%clk 0:00:25.6]} 45... a3
{[%clk 0:01:04.7]} 0-1

[Event "*** Titled Tuesday Blitz"]
[Site "Chess.com"]
[Date "2020.11.10"]
[Round "8"]
[White "BocharovD"]
[Black "GalperinPlaton"]
[Result "1-0"]
[WhiteElo "2785"]
[BlackElo "2877"]
[TimeControl "180+1"]
[EndTime "11:32:50 PST"]
[Termination "BocharovD won by resignation"]

1. c4 {[%clk 0:03:00.9]} 1... c5 {[%clk 0:03:00.9]} 2. g3 {[%clk 0:03:00.4]}
2... g6 {[%clk 0:03:01.4]} 3. Bg2 {[%clk 0:03:00.2]} 3... Bg7 {[%clk 0:03:02.1]}
4. Nc3 {[%clk 0:03:00.7]} 4... Nc6 {[%clk 0:03:02.6]} 5. d3 {[%clk 0:03:00.4]}
5... Nf6 {[%clk 0:03:01.9]} 6. Nh3 {[%clk 0:02:52.4]} 6... e6 {[%clk 0:02:59.1]}
7. Nf4 {[%clk 0:02:51.9]} 7... O-O {[%clk 0:02:59.1]} 8. O-O {[%clk 0:02:51.1]}
8... b6 {[%clk 0:02:59.5]} 9. Qd2 {[%clk 0:02:43]} 9... Bb7 {[%clk 0:02:59.4]}
10. b3 {[%clk 0:02:43.2]} 10... d5 {[%clk 0:02:55.6]} 11. cxd5 {[%clk
0:02:37.4]} 11... exd5 {[%clk 0:02:56.5]} 12. Bb2 {[%clk 0:02:36.5]} 12... d4
{[%clk 0:02:56.4]} 13. Ne4 {[%clk 0:02:32.1]} 13... Nxe4 {[%clk 0:02:55.6]} 14.
Bxe4 {[%clk 0:02:33]} 14... Qd7 {[%clk 0:02:55.7]} 15. a3 {[%clk 0:02:25.9]}
15... a5 {[%clk 0:02:52.1]} 16. Nd5 {[%clk 0:01:58.8]} 16... Ne5 {[%clk
0:02:41.4]} 17. Nxb6 {[%clk 0:01:53.9]} 17... Qh3 {[%clk 0:02:41.3]} 18. f3
{[%clk 0:01:43.8]} 18... Bh6 {[%clk 0:02:31.4]} 19. Qc2 {[%clk 0:01:43.1]} 19...
Be3+ {[%clk 0:02:00.6]} 20. Kh1 {[%clk 0:01:41.5]} 20... Bxe4 {[%clk 0:01:56.5]}
21. dxe4 {[%clk 0:01:41]} 21... Rae8 {[%clk 0:01:56.1]} 22. Nd5 {[%clk
0:01:36.2]} 22... f5 {[%clk 0:01:48.1]} 23. Nxe3 {[%clk 0:01:30.5]} 23... f4
{[%clk 0:00:35.3]} 24. gxf4 {[%clk 0:01:17.5]} 24... Rxf4 {[%clk 0:00:36.2]} 25.
Ng2 {[%clk 0:01:15.8]} 25... Ref8 {[%clk 0:00:25.6]} 26. Nxf4 {[%clk 0:01:03.7]}
26... Rxf4 {[%clk 0:00:26.5]} 27. Qxc5 {[%clk 0:00:54.8]} 27... Ng4 {[%clk
0:00:17.8]} 28. Qd5+ {[%clk 0:00:51.1]} 28... Kg7 {[%clk 0:00:17.3]} 29. Qxd4+
{[%clk 0:00:42.6]} 29... Kh6 {[%clk 0:00:17.8]} 30. Qg1 {[%clk 0:00:40.9]} 30...
Nf6 {[%clk 0:00:07.5]} 31. Qg3 {[%clk 0:00:36.2]} 1-0

[Event "*** Titled Tuesday Blitz"]
[Site "Chess.com"]
[Date "2020.11.10"]
[Round "8"]
[White "AlexSuv"]
[Black "LiamVrolijk"]
[Result "0-1"]
[WhiteElo "2586"]
[BlackElo "2809"]
[TimeControl "180+1"]
[EndTime "11:32:52 PST"]
[Termination "LiamVrolijk won by resignation"]

1. d4 {[%clk 0:02:59.9]} 1... g6 {[%clk 0:02:59.9]} 2. c4 {[%clk 0:02:59.2]}
2... Nf6 {[%clk 0:02:59.9]} 3. Nc3 {[%clk 0:02:58.8]} 3... d5 {[%clk 0:03:00.2]}
4. Nf3 {[%clk 0:02:59.2]} 4... Bg7 {[%clk 0:03:00.6]} 5. Qb3 {[%clk 0:02:59.2]}
5... dxc4 {[%clk 0:02:58.4]} 6. Qxc4 {[%clk 0:03:00.1]} 6... Be6 {[%clk
0:02:58.7]} 7. Qa4+ {[%clk 0:02:56]} 7... Bd7 {[%clk 0:02:55]} 8. Qb3 {[%clk
0:02:55.7]} 8... O-O {[%clk 0:02:55.3]} 9. Bg5 {[%clk 0:02:52.3]} 9... c5 {[%clk
0:02:54.1]} 10. e3 {[%clk 0:02:52.2]} 10... Nc6 {[%clk 0:02:49.7]} 11. Rd1
{[%clk 0:02:49.6]} 11... Qa5 {[%clk 0:02:29.2]} 12. Be2 {[%clk 0:02:43.9]} 12...
cxd4 {[%clk 0:02:25.1]} 13. exd4 {[%clk 0:02:40.2]} 13... Ne4 {[%clk 0:02:05.2]}
14. Be3 {[%clk 0:02:34.9]} 14... Be6 {[%clk 0:02:04.2]} 15. Bc4 {[%clk
0:02:19.4]} 15... Bxc4 {[%clk 0:01:58.5]} 16. Qxc4 {[%clk 0:02:18.2]} 16... Rac8
{[%clk 0:01:59.2]} 17. Qb3 {[%clk 0:02:11.5]} 17... Nxc3 {[%clk 0:01:43.4]} 18.
bxc3 {[%clk 0:02:06.6]} 18... Qa6 {[%clk 0:01:43.8]} 19. Qb2 {[%clk 0:01:55.2]}
19... Na5 {[%clk 0:01:43.9]} 20. Rc1 {[%clk 0:01:48.6]} 20... Nc4 {[%clk
0:01:43.8]} 21. Qe2 {[%clk 0:01:47.4]} 21... Qe6 {[%clk 0:01:35.4]} 22. O-O
{[%clk 0:01:39.8]} 22... Qd5 {[%clk 0:01:35.7]} 23. Rfe1 {[%clk 0:01:37.9]}
23... b5 {[%clk 0:01:35]} 24. Bg5 {[%clk 0:01:33.7]} 24... e6 {[%clk 0:01:34]}
25. Be7 {[%clk 0:01:20]} 25... Rfe8 {[%clk 0:01:34]} 26. Bc5 {[%clk 0:01:18]}
26... a5 {[%clk 0:01:33.5]} 27. Qe4 {[%clk 0:01:15.8]} 27... Qxe4 {[%clk
0:01:21.8]} 28. Rxe4 {[%clk 0:01:11.9]} 28... Bf8 {[%clk 0:01:22.7]} 29. Bxf8
{[%clk 0:01:10.4]} 29... Kxf8 {[%clk 0:01:23.6]} 30. Ne5 {[%clk 0:01:07.4]}
30... Nd6 {[%clk 0:01:21.5]} 31. Ree1 {[%clk 0:01:03.7]} 31... Rc7 {[%clk
0:01:21.9]} 32. Rc2 {[%clk 0:00:53.5]} 32... Rec8 {[%clk 0:01:21.3]} 33. Rec1
{[%clk 0:00:54]} 33... Kg7 {[%clk 0:01:14.6]} 34. f3 {[%clk 0:00:53.4]} 34... b4
{[%clk 0:01:04.5]} 35. c4 {[%clk 0:00:51.4]} 35... f6 {[%clk 0:01:04.3]} 36. Nd3
{[%clk 0:00:48.3]} 36... Rxc4 {[%clk 0:01:04.5]} 37. Nc5 {[%clk 0:00:48.4]}
37... Rxc2 {[%clk 0:01:00.2]} 38. Rxc2 {[%clk 0:00:49.3]} 38... Kf7 {[%clk
0:00:59.9]} 39. Re2 {[%clk 0:00:48.3]} 39... Nb5 {[%clk 0:00:44.8]} 40. Nxe6
{[%clk 0:00:44.8]} 40... Nc3 {[%clk 0:00:45]} 41. Re1 {[%clk 0:00:40.5]} 41...
Re8 {[%clk 0:00:45.1]} 0-1

[Event "*** Titled Tuesday Blitz"]
[Site "Chess.com"]
[Date "2020.11.10"]
[Round "8"]
[White "ChronicUnhappiness"]
[Black "hypert"]
[Result "0-1"]
[WhiteElo "2334"]
[BlackElo "2481"]
[TimeControl "180+1"]
[EndTime "11:32:52 PST"]
[Termination "hypert won on time"]

1. c4 {[%clk 0:03:00.9]} 1... e5 {[%clk 0:02:59.3]} 2. Nc3 {[%clk 0:03:00.4]}
2... c6 {[%clk 0:02:59.6]} 3. Nf3 {[%clk 0:02:46.9]} 3... d6 {[%clk 0:02:56.7]}
4. d4 {[%clk 0:02:45.4]} 4... Nd7 {[%clk 0:02:56.3]} 5. e4 {[%clk 0:02:44.3]}
5... Ngf6 {[%clk 0:02:56.2]} 6. Be2 {[%clk 0:02:40]} 6... Be7 {[%clk 0:02:56.5]}
7. O-O {[%clk 0:02:39.7]} 7... O-O {[%clk 0:02:57.1]} 8. h3 {[%clk 0:02:30.1]}
8... a6 {[%clk 0:02:57.4]} 9. Qc2 {[%clk 0:02:17.2]} 9... b5 {[%clk 0:02:52.9]}
10. a3 {[%clk 0:02:16.8]} 10... Re8 {[%clk 0:02:47.8]} 11. Rd1 {[%clk
0:02:16.2]} 11... Qc7 {[%clk 0:02:35]} 12. cxb5 {[%clk 0:02:06.3]} 12... cxb5
{[%clk 0:02:34.9]} 13. Be3 {[%clk 0:02:04]} 13... Bb7 {[%clk 0:02:34.4]} 14.
Rac1 {[%clk 0:02:02.6]} 14... Rac8 {[%clk 0:02:31.8]} 15. Qb1 {[%clk 0:01:36.1]}
15... Qb8 {[%clk 0:02:31.7]} 16. dxe5 {[%clk 0:01:19.3]} 16... dxe5 {[%clk
0:02:27.6]} 17. Nd5 {[%clk 0:01:16.6]} 17... Bxd5 {[%clk 0:02:17.6]} 18. Rxc8
{[%clk 0:01:07.7]} 18... Rxc8 {[%clk 0:02:15.4]} 19. exd5 {[%clk 0:01:08]} 19...
Bc5 {[%clk 0:02:15.6]} 20. Bg5 {[%clk 0:00:39.3]} 20... Qb6 {[%clk 0:02:12.7]}
21. Bh4 {[%clk 0:00:36.6]} 21... e4 {[%clk 0:02:05.1]} 22. Ng5 {[%clk
0:00:30.5]} 22... e3 {[%clk 0:01:56.6]} 23. f4 {[%clk 0:00:24.9]} 23... b4
{[%clk 0:01:52.6]} 24. Ne4 {[%clk 0:00:14.9]} 24... Nxe4 {[%clk 0:01:32]} 25.
Qxe4 {[%clk 0:00:15.8]} 25... bxa3 {[%clk 0:01:32.3]} 26. bxa3 {[%clk
0:00:13.8]} 26... Nf6 {[%clk 0:01:24.6]} 27. Qd3 {[%clk 0:00:09.9]} 27... Qd6
{[%clk 0:01:11.6]} 28. Bg3 {[%clk 0:00:07.1]} 28... Bxa3 {[%clk 0:01:08]} 29.
Qxa6 {[%clk 0:00:06]} 29... Qxa6 {[%clk 0:01:05]} 30. Bxa6 {[%clk 0:00:06.9]}
30... Rd8 {[%clk 0:01:04.2]} 31. Bc4 {[%clk 0:00:05.2]} 31... Ne4 {[%clk
0:01:00.2]} 32. Be1 {[%clk 0:00:04.2]} 32... Bc5 {[%clk 0:00:58.3]} 33. Kf1
{[%clk 0:00:04.3]} 33... Kf8 {[%clk 0:00:55.9]} 34. Ke2 {[%clk 0:00:04]} 34...
Nd6 {[%clk 0:00:53.6]} 35. Bb3 {[%clk 0:00:03.6]} 35... Nf5 {[%clk 0:00:53.5]}
36. Rd3 {[%clk 0:00:03.2]} 36... Rb8 {[%clk 0:00:50.3]} 0-1

[Event "*** Titled Tuesday Blitz"]
[Site "Chess.com"]
[Date "2020.11.10"]
[Round "8"]
[White "Crazy_girl99"]
[Black "chessmachine14"]
[Result "1-0"]
[WhiteElo "2494"]
[BlackElo "2289"]
[TimeControl "180+1"]
[EndTime "11:32:53 PST"]
[Termination "Crazy_girl99 won by checkmate"]

1. e4 {[%clk 0:03:00.9]} 1... c5 {[%clk 0:02:59.7]} 2. Nf3 {[%clk 0:02:59.5]}
2... e6 {[%clk 0:03:00]} 3. d4 {[%clk 0:02:58]} 3... cxd4 {[%clk 0:03:00.2]} 4.
Nxd4 {[%clk 0:02:58.6]} 4... Nf6 {[%clk 0:03:00.6]} 5. Nc3 {[%clk 0:02:59]} 5...
d6 {[%clk 0:03:01.1]} 6. Bg5 {[%clk 0:02:53.6]} 6... Be7 {[%clk 0:02:58.4]} 7.
Qd2 {[%clk 0:02:49.5]} 7... Nc6 {[%clk 0:02:43.7]} 8. h4 {[%clk 0:02:23.6]} 8...
Qb6 {[%clk 0:02:36.1]} 9. Nb3 {[%clk 0:02:22.8]} 9... h6 {[%clk 0:02:15.8]} 10.
Be3 {[%clk 0:02:21.2]} 10... Qc7 {[%clk 0:02:11.9]} 11. O-O-O {[%clk 0:02:16.9]}
11... a6 {[%clk 0:02:10.9]} 12. Be2 {[%clk 0:02:12.6]} 12... Bd7 {[%clk
0:02:11]} 13. f4 {[%clk 0:02:09.7]} 13... Rc8 {[%clk 0:02:05.9]} 14. Bf3 {[%clk
0:02:06.1]} 14... e5 {[%clk 0:01:58.8]} 15. Kb1 {[%clk 0:01:59.1]} 15... Be6
{[%clk 0:01:30.4]} 16. f5 {[%clk 0:01:56.4]} 16... Bc4 {[%clk 0:01:26.9]} 17. g4
{[%clk 0:01:52.4]} 17... b5 {[%clk 0:01:19.4]} 18. g5 {[%clk 0:01:52]} 18... b4
{[%clk 0:01:16.7]} 19. gxf6 {[%clk 0:01:33.6]} 19... bxc3 {[%clk 0:01:12.6]} 20.
fxg7 {[%clk 0:01:22.7]} 20... Rg8 {[%clk 0:01:02.4]} 21. Qxc3 {[%clk 0:01:22.3]}
21... Bxb3 {[%clk 0:00:58]} 22. axb3 {[%clk 0:01:20.2]} 22... Rxg7 {[%clk
0:00:58.2]} 23. Rhg1 {[%clk 0:01:16.4]} 23... Rxg1 {[%clk 0:00:48]} 24. Rxg1
{[%clk 0:01:17.3]} 24... Nd4 {[%clk 0:00:42.5]} 25. Qxc7 {[%clk 0:00:45.2]}
25... Rxc7 {[%clk 0:00:41.8]} 26. Bd1 {[%clk 0:00:39.2]} 26... Bxh4 {[%clk
0:00:39.9]} 27. Bxh6 {[%clk 0:00:38.3]} 27... Ke7 {[%clk 0:00:35.8]} 28. Rg8
{[%clk 0:00:35.1]} 28... Ra7 {[%clk 0:00:08.5]} 29. c3 {[%clk 0:00:34.7]} 29...
Nc6 {[%clk 0:00:04.9]} 30. b4 {[%clk 0:00:34.7]} 30... Bf6 {[%clk 0:00:04.4]}
31. Ba4 {[%clk 0:00:33.8]} 31... Nd8 {[%clk 0:00:03.8]} 32. Bf8# {[%clk
0:00:33.8]} 1-0

[Event "*** Titled Tuesday Blitz"]
[Site "Chess.com"]
[Date "2020.11.10"]
[Round "8"]
[White "tteshan"]
[Black "Lupul_Cenusiu"]
[Result "0-1"]
[WhiteElo "2361"]
[BlackElo "2539"]
[TimeControl "180+1"]
[EndTime "11:32:55 PST"]
[Termination "Lupul_Cenusiu won by checkmate"]

1. d4 {[%clk 0:03:00.9]} 1... d5 {[%clk 0:02:58.2]} 2. c4 {[%clk 0:03:01.3]}
2... c6 {[%clk 0:02:58]} 3. Nc3 {[%clk 0:03:01.6]} 3... Nf6 {[%clk 0:02:57.8]}
4. e3 {[%clk 0:03:02]} 4... g6 {[%clk 0:02:57.1]} 5. Nf3 {[%clk 0:03:02.5]} 5...
Bg7 {[%clk 0:02:56.9]} 6. Bd3 {[%clk 0:03:02.8]} 6... O-O {[%clk 0:02:56.3]} 7.
O-O {[%clk 0:03:02.5]} 7... a6 {[%clk 0:02:56.4]} 8. Qe2 {[%clk 0:03:01.5]} 8...
b5 {[%clk 0:02:55.3]} 9. c5 {[%clk 0:02:58.8]} 9... Bg4 {[%clk 0:02:54.2]} 10.
h3 {[%clk 0:02:58.1]} 10... Bxf3 {[%clk 0:02:53.5]} 11. Qxf3 {[%clk 0:02:59]}
11... Nbd7 {[%clk 0:02:53.5]} 12. Bd2 {[%clk 0:02:57.7]} 12... e5 {[%clk
0:02:52.8]} 13. Qd1 {[%clk 0:02:44]} 13... Re8 {[%clk 0:02:49.4]} 14. b4 {[%clk
0:02:35.1]} 14... h5 {[%clk 0:02:40.6]} 15. Ne2 {[%clk 0:02:30.3]} 15... e4
{[%clk 0:02:37.6]} 16. Bc2 {[%clk 0:02:29.8]} 16... a5 {[%clk 0:02:37.7]} 17. a3
{[%clk 0:02:29]} 17... a4 {[%clk 0:02:32.3]} 18. Nf4 {[%clk 0:02:11.5]} 18... h4
{[%clk 0:02:28.4]} 19. f3 {[%clk 0:02:05.2]} 19... g5 {[%clk 0:02:26.6]} 20. Ne2
{[%clk 0:02:04.9]} 20... Qe7 {[%clk 0:02:13.1]} 21. Nc3 {[%clk 0:01:58.8]} 21...
Qe6 {[%clk 0:02:06.7]} 22. fxe4 {[%clk 0:01:57.5]} 22... Nxe4 {[%clk 0:02:05.8]}
23. Nxe4 {[%clk 0:01:54]} 23... dxe4 {[%clk 0:02:05.4]} 24. Bb1 {[%clk
0:01:45.2]} 24... Nf6 {[%clk 0:02:00.5]} 25. Ba2 {[%clk 0:01:42]} 25... Nd5
{[%clk 0:02:00.1]} 26. Qh5 {[%clk 0:01:36.2]} 26... Bh6 {[%clk 0:01:42.8]} 27.
Rae1 {[%clk 0:01:32.5]} 27... Kg7 {[%clk 0:01:40]} 28. Re2 {[%clk 0:01:29.7]}
28... f5 {[%clk 0:01:38.9]} 29. Ref2 {[%clk 0:01:28.3]} 29... Rf8 {[%clk
0:01:38.6]} 30. Bc1 {[%clk 0:00:50]} 30... Rf6 {[%clk 0:01:37.6]} 31. Kh1 {[%clk
0:00:46.2]} 31... Raf8 {[%clk 0:01:37.2]} 32. Qe2 {[%clk 0:00:38.3]} 32... Kg6
{[%clk 0:01:35.1]} 33. Re1 {[%clk 0:00:30.4]} 33... R8f7 {[%clk 0:01:34.8]} 34.
Bb2 {[%clk 0:00:27.9]} 34... Bf8 {[%clk 0:01:34.4]} 35. Bc1 {[%clk 0:00:23.7]}
35... Be7 {[%clk 0:01:33.2]} 36. Bb2 {[%clk 0:00:23.7]} 36... Bd8 {[%clk
0:01:33.4]} 37. Bb1 {[%clk 0:00:22.5]} 37... Bc7 {[%clk 0:01:33.6]} 38. Bc2
{[%clk 0:00:21.7]} 38... Bb8 {[%clk 0:01:33.5]} 39. Bd1 {[%clk 0:00:20.5]} 39...
Rh7 {[%clk 0:01:32.9]} 40. Qf1 {[%clk 0:00:18.7]} 40... Qd7 {[%clk 0:01:32.3]}
41. Rd2 {[%clk 0:00:12.8]} 41... Qc7 {[%clk 0:01:29.8]} 42. Qg1 {[%clk 0:00:13]}
42... Qg3 {[%clk 0:01:24]} 43. Rf1 {[%clk 0:00:12.7]} 43... g4 {[%clk
0:01:21.2]} 44. hxg4 {[%clk 0:00:09.6]} 44... fxg4 {[%clk 0:01:20.4]} 45. Rxf6+
{[%clk 0:00:09.4]} 45... Nxf6 {[%clk 0:01:20.4]} 46. Bc2 {[%clk 0:00:08.7]}
46... h3 {[%clk 0:01:18.4]} 47. Qf2 {[%clk 0:00:02.4]} 47... hxg2+ {[%clk
0:01:17.2]} 48. Kg1 {[%clk 0:00:02.8]} 48... Rh1# {[%clk 0:01:17.1]} 0-1